fUSD/lending_fUSD_20240629
["ID","MTS","AMOUNT","RATE_DAILY","PERIOD"]
[330640661,1719681724917,-500.0,0.0001389,3]
[330640662,1719681724940,-1575.15,0.0001389,3]
[330640663,1719681724961,-1646.48,0.0001389,3]
[330640664,1719681724984,-500.0,0.0001389,3]
[330640665,1719681725005,-500.0,0.0001389,3]
[330640666,1719681725028,-1562.8,0.0001389,3]
[330640667,1719681725052,-7487.6,0.0001389,3]
[330640668,1719681725073,-500.0,0.0001389,3]
[330640669,1719681725095,-500.0,0.0001389,3]
[330640670,1719681725117,-500.0,0.0001389,3]
[330640671,1719681725139,-500.0,0.0001389,3]
[330640672,1719681725162,-5266.29,0.0001389,3]
[330640673,1719681725185,-500.0,0.0001389,3]
[330640674,1719681725213,-1193.09,0.0001389,3]
[330640675,1719681725236,-2297.51,0.0001389,3]
[330640676,1719681725260,-6013.41,0.0001389,3]
[330640677,1719681725282,-1108.75,0.0001389,3]
[330640678,1719681725305,-760.05,0.0001389,3]
[330640679,1719681725328,-4385.4,0.0001389,3]
[330640680,1719681725351,-14375.06,0.0001389,3]
[330640681,1719681725374,-500.0,0.0001389,3]
[330640682,1719681725395,-632.86,0.0001389,3]
[330640683,1719681725418,-633.84,0.0001389,3]
[330640684,1719681725440,-732.56,0.0001389,3]
[330640685,1719681725465,-848.97,0.0001389,3]
[330640686,1719681725490,-500.0,0.0001389,3]
[330640687,1719681725518,-792.38,0.0001389,3]
[330640688,1719681725545,-21593.07015545,0.0001389,3]
[330640689,1719681726438,155.0,0.00011199,2]
[330640691,1719681886075,369.26,0.00010976,2]
[330640693,1719682042372,903.27472408,0.00011199,2]
[330640695,1719682136753,657.99122263,0.00011199,2]
[330640696,1719682182400,227.02046916,0.00011199,2]
[330640712,1719682232428,-301.74096619,0.00012273,2]
[330640713,1719682232439,-296.56181456,0.00012273,2]
[330640714,1719682232450,-155.10759368,0.00012273,2]
[330640715,1719682232460,-1400.0,0.00012647,2]
[330640716,1719682232469,-1100.0,0.00012647,2]
[330640717,1719682232478,-250.0,0.00012863,2]
[330640718,1719682232487,-250.0,0.00012881,2]
[330640719,1719682232497,-334.12334662,0.00012886,2]
[330640720,1719682232510,-267.23393513,0.00012886,2]
[330640721,1719682232523,-398.64271825,0.00012886,2]
[330640722,1719682232533,-369.26,0.0001324,2]
[330640723,1719682232543,-300.0,0.00013468,2]
[330640724,1719682232552,-1400.0,0.00013469,2]
[330640725,1719682232562,-1100.0,0.00013469,2]
[330640726,1719682232572,-529.88213633,0.00013472,2]
[330640727,1719682232582,-2376.06489013,0.00013516,2]
[330640728,1719682232593,-399.88147407,0.00013516,2]
[330640729,1719682232603,-614.35310424,0.00013574,2]
[330640730,1719682232614,-172.32,0.00013699,2]
[330640731,1719682232625,-182.95,0.00013699,2]
[330640732,1719682232634,-347.67561,0.0001376,2]
[330640733,1719682232646,-9420.64570134,0.0001379,2]
[330640734,1719682232657,-176.13900663,0.00013793,2]
[330640735,1719682232666,-164.98878452,0.00013793,2]
[330640736,1719682232676,-167.27843961,0.00013798,2]
[330640737,1719682232687,-88.30799386,0.00013799,2]
[330640738,1719682232699,-1417.01197529,0.00013799,2]
[330640739,1719682232709,-150.0,0.00013886,2]
[330640740,1719682232719,-160.99674391,0.00013887,2]
[330640741,1719682232740,-2783.83701633,0.00013887,2]
[330640742,1719682232763,-1184.88312128,0.00013887,2]
[330640743,1719682232775,-4416.99551455,0.00013887,2]
[330640744,1719682232786,-7028.89931554,0.00013887,2]
[330640745,1719682232810,-760.83378307,0.00013887,2]
[330640746,1719682238263,-4488.32092168,0.00013887,2]
[330640747,1719682238276,-1240.2756,0.00013887,2]
[330640748,1719682238288,-300.11965555,0.00013887,2]
[330640749,1719682238300,-1522.57839701,0.00013887,2]
[330640750,1719682238311,-2303.76231469,0.00013887,2]
[330640751,1719682238360,-35179.90023779,0.00013887,2]
[330640752,1719682238369,-8396.5635144,0.00013887,2]
[330640753,1719682238379,-1205.25056054,0.00013887,2]
[330640754,1719682238393,-539.1790548,0.00013887,2]
[330640755,1719682238405,-1919.68156036,0.00013887,2]
[330640756,1719682238415,-506.21,0.00013889,3]
[330640757,1719682238424,-1654.48,0.00013889,3]
[330640758,1719682238434,-500.0,0.00013889,3]
[330640759,1719682238443,-500.0,0.00013889,3]
[330640760,1719682238453,-1283.74,0.00013889,3]
[330640761,1719682238463,-2287.99,0.00013889,3]
[330640762,1719682238472,-500.0,0.00013889,3]
[330640763,1719682238484,-2427.26,0.00013889,3]
[330640764,1719682238495,-491.24694429,0.00013889,3]
[330640765,1719682238504,-500.0,0.00013889,3]
[330640766,1719682238514,-500.0,0.00013889,3]
[330640767,1719682238524,-1094.54,0.00013889,3]
[330640768,1719682238535,-16.85149535,0.00013889,3]
[330640769,1719682238547,-315.25686863,0.00013889,3]
[330640771,1719682238582,-240.80163602,0.00013889,3]
[330640772,1719682238591,-3070.91,0.00013889,3]
[330640773,1719682238601,-1480.45,0.00013889,3]
[330640774,1719682238611,-2920.35,0.00013889,3]
[330640775,1719682238622,-2731.01,0.00013889,3]
[330640776,1719682238632,-2281.46,0.00013889,3]
[330640778,1719682238643,-500.0,0.00013889,3]
[330640780,1719682238657,-500.0,0.00013889,3]
[330640782,1719682238666,-500.0,0.00013889,3]
[330640784,1719682238676,-294.22336471,0.00013889,3]
[330640786,1719682238686,-2448.22,0.00013889,3]
[330640788,1719682238697,-500.0,0.00013889,3]
[330640790,1719682238706,-732.46,0.00013889,3]
[330640792,1719682238716,-1954.0,0.00013889,3]
[330640794,1719682238727,-500.0,0.00013889,3]
[330640796,1719682238737,-1074.55,0.00013889,2]
[330640798,1719682238746,-1263.08,0.00013889,3]
[330640800,1719682238756,-500.0,0.00013889,3]
[330640802,1719682238765,-716.81,0.00013889,3]
[330640804,1719682238775,-1574.6,0.00013889,3]
[330640806,1719682238786,-568.5,0.00013889,3]
[330640808,1719682238795,-500.0,0.00013889,3]
[330640810,1719682238805,-1244.18,0.00013889,3]
[330640812,1719682238815,-1548.49,0.00013889,3]
[330640814,1719682238825,-2804.69,0.00013889,3]
[330640816,1719682238835,-1207.76,0.00013889,3]
[330640818,1719682238844,-500.0,0.00013889,3]
[330640820,1719682238854,-704.93,0.00013889,3]
[330640822,1719682238864,-1049.75,0.00013889,3]
[330640824,1719682238874,-500.0,0.00013889,3]
[330640826,1719682238884,-534.07,0.00013889,3]
[330640828,1719682238895,-500.0,0.00013889,3]
[330640830,1719682238905,-1085.89,0.00013889,3]
[330640832,1719682238915,-2291.01,0.00013889,3]
[330640834,1719682238925,-1877.53,0.00013889,3]
[330640836,1719682238934,-1570.57,0.00013889,3]
[330640838,1719682238944,-500.0,0.00013889,3]
[330640840,1719682238954,-2538.33,0.00013889,3]
[330640842,1719682238964,-500.0,0.00013889,3]
[330640844,1719682238975,-2204.2,0.00013889,3]
[330640846,1719682238984,-2412.24,0.00013889,3]
[330640848,1719682238995,-1107.21,0.00013889,3]
[330640850,1719682239004,-500.0,0.00013889,3]
[330640852,1719682239015,-1452.5,0.00013889,3]
[330640854,1719682239024,-500.0,0.00013889,3]
[330640856,1719682239035,-947.62,0.00013889,3]
[330640858,1719682239047,-1796.99,0.00013889,3]
[330640860,1719682239057,-5285.59,0.00013889,3]
[330640863,1719682239068,-2838.72,0.00013889,3]
[330640865,1719682239078,-500.0,0.00013889,3]
[330640867,1719682239088,-2673.35,0.00013889,3]
[330640869,1719682239098,-1156.03,0.00013889,3]
[330640871,1719682239108,-1248.23,0.00013889,3]
[330640873,1719682239120,-500.0,0.00013889,3]
[330640874,1719682239130,-1577.88,0.00013889,3]
[330640877,1719682239140,-500.0,0.00013889,3]
[330640878,1719682239151,-725.92,0.00013889,3]
[330640920,1719682239564,-2997.54,0.00013889,3]
[330640926,1719682239608,-7936.29,0.00013889,3]
[330640928,1719682239626,-1497.68,0.00013889,3]
[330640930,1719682239636,-4487.35,0.00013889,3]
[330640932,1719682239651,-1509.52,0.00013889,3]
[330640934,1719682239665,-14.89330453,0.00013889,3]
[330640937,1719682239679,-1128.48669547,0.00013889,3]
[330640939,1719682239689,-500.0,0.00013889,3]
[330640941,1719682239699,-4202.67,0.00013889,3]
[330640943,1719682239711,-2849.15,0.00013889,3]
[330640945,1719682239721,-607.43,0.00013889,3]
[330640947,1719682239732,-2106.05,0.00013889,3]
[330640949,1719682239743,-759.36,0.00013889,3]
[330640951,1719682239753,-3028.67,0.00013889,3]
[330640953,1719682239764,-8989.33,0.00013889,3]
[330640955,1719682239774,-1066.81,0.00013889,3]
[330640957,1719682239785,-706.85,0.00013889,3]
[330640959,1719682239796,-884.6,0.00013889,3]
[330640961,1719682239806,-1338.26,0.00013889,3]
[330640963,1719682239816,-5046.87,0.00013889,3]
[330640965,1719682239827,-500.0,0.00013889,3]
[330640967,1719682239837,-500.0,0.00013889,3]
[330640969,1719682239848,-500.0,0.00013889,3]
[330640971,1719682239858,-783.69,0.00013889,3]
[330640973,1719682239868,-2881.42,0.00013889,3]
[330640975,1719682239879,-961.27,0.0001389,3]
[330640977,1719682239889,-1483.06,0.0001389,3]
[330640979,1719682239901,-583.48,0.0001389,3]
[330640981,1719682239913,-500.0,0.0001389,3]
[330640983,1719682239924,-577.66,0.0001389,3]
[330640984,1719682239934,-503.75,0.0001389,3]
[330640985,1719682239944,-1554.73,0.0001389,3]
[330640986,1719682239954,-500.0,0.0001389,3]
[330640987,1719682239965,-997.48,0.0001389,3]
[330640988,1719682239976,-500.0,0.0001389,3]
[330640989,1719682239987,-1828.46,0.0001389,3]
[330640990,1719682239996,-500.0,0.0001389,3]
[330640991,1719682240007,-671.69,0.0001389,3]
[330640992,1719682240016,-500.0,0.0001389,3]
[330640993,1719682240027,-500.0,0.0001389,3]
[330640995,1719682240038,-1735.24,0.0001389,3]
[330640997,1719682240048,-587.9,0.0001389,3]
[330641000,1719682240059,-500.0,0.0001389,3]
[330641002,1719682240070,-1696.71,0.0001389,3]
[330641004,1719682240081,-549.2,0.0001389,3]
[330641006,1719682240092,-1441.67,0.0001389,3]
[330641008,1719682240103,-500.0,0.0001389,3]
[330641010,1719682240113,-1147.99,0.0001389,3]
[330641012,1719682240124,-523.31,0.0001389,3]
[330641014,1719682240134,-500.0,0.0001389,3]
[330641016,1719682240145,-592.05,0.0001389,3]
[330641018,1719682240155,-1707.39,0.0001389,3]
[330641020,1719682240165,-500.0,0.0001389,3]
[330641022,1719682240176,-500.0,0.0001389,3]
[330641024,1719682240186,-681.62,0.0001389,3]
[330641026,1719682240195,-500.0,0.0001389,3]
[330641028,1719682240205,-2016.3,0.0001389,3]
[330641030,1719682240215,-909.19,0.0001389,3]
[330641032,1719682240226,-500.0,0.0001389,3]
[330641034,1719682240236,-1742.6,0.0001389,3]
[330641036,1719682240247,-500.0,0.0001389,3]
[330641038,1719682240257,-500.0,0.0001389,3]
[330641040,1719682240267,-1937.65,0.0001389,3]
[330641042,1719682240277,-2394.18,0.0001389,3]
[330641044,1719682240287,-747.09,0.0001389,3]
[330641046,1719682240298,-559.04,0.0001389,3]
[330641048,1719682240308,-537.83,0.0001389,3]
[330641049,1719682240318,-500.0,0.0001389,3]
[330641051,1719682240328,-564.76,0.0001389,3]
[330641053,1719682240340,-408.87123196,0.0001389,3]
[330641056,1719682240354,-91.12876804,0.0001389,3]
[330641059,1719682240365,-500.0,0.0001389,3]
[330641061,1719682240375,-278.07070303,0.0001389,3]
[330641063,1719682240387,-221.92929697,0.0001389,3]
[330641065,1719682240398,-749.21,0.0001389,3]
[330641067,1719682240408,-959.93,0.0001389,3]
[330641069,1719682240419,-500.0,0.0001389,3]
[330641071,1719682240430,-500.0,0.0001389,3]
[330641073,1719682240440,-255.22336999,0.0001389,3]
[330641076,1719682240453,-244.77663001,0.0001389,3]
[330641078,1719682240463,-796.51,0.0001389,3]
[330641080,1719682240474,-500.0,0.0001389,3]
[330641082,1719682240485,-500.0,0.0001389,3]
[330641084,1719682240495,-500.0,0.0001389,3]
[330641086,1719682240505,-1915.59,0.0001389,3]
[330641088,1719682240516,-1582.14,0.0001389,3]
[330641090,1719682240526,-500.0,0.0001389,3]
[330641092,1719682240536,-1793.89,0.0001389,3]
[330641094,1719682240547,-500.0,0.0001389,3]
[330641096,1719682240557,-500.0,0.0001389,3]
[330641098,1719682240567,-1643.91,0.0001389,3]
[330641100,1719682240577,-500.0,0.0001389,3]
[330641102,1719682240587,-2731.78,0.0001389,3]
[330641104,1719682240598,-766.03,0.0001389,3]
[330641106,1719682240609,-1050.81,0.0001389,3]
[330641108,1719682240622,-734.01,0.0001389,3]
[330641110,1719682240634,-500.0,0.0001389,3]
[330641112,1719682240646,-500.0,0.0001389,3]
[330641114,1719682240660,-559.68,0.0001389,3]
[330641116,1719682240671,-3225.83,0.0001389,3]
[330641118,1719682240681,-500.0,0.0001389,3]
[330641120,1719682240694,-500.0,0.0001389,3]
[330641123,1719682240705,-841.52,0.0001389,3]
[330641125,1719682240716,-905.75,0.0001389,3]
[330641127,1719682240726,-875.51,0.0001389,3]
[330641129,1719682240741,-747.88,0.0001389,3]
[330641131,1719682240752,-709.8,0.0001389,3]
[330641133,1719682240763,-500.0,0.0001389,3]
[330641135,1719682240774,-500.0,0.0001389,3]
[330641137,1719682240784,-533.51,0.0001389,3]
[330641139,1719682240795,-500.0,0.0001389,3]
[330641141,1719682240805,-500.0,0.0001389,3]
[330641143,1719682240815,-112.2806025,0.0001389,3]
[330641145,1719682240829,-712.4693975,0.0001389,3]
[330641147,1719682240839,-500.0,0.0001389,3]
[330641149,1719682240850,-1253.33,0.0001389,3]
[330641151,1719682240860,-500.0,0.0001389,3]
[330641153,1719682240871,-728.84,0.0001389,3]
[330641155,1719682240881,-175.27752921,0.0001389,3]
[330641157,1719682240892,-500.0,0.0001389,3]
[330641159,1719682240903,-98.66211568,0.0001389,3]
[330641163,1719682240941,-519.7933878,0.00013889,3]
[330641166,1719682240954,-367.5366122,0.00013889,3]
[330641168,1719682240965,-401.33788432,0.0001389,3]
[330641170,1719682240975,-500.0,0.0001389,3]
[330641172,1719682240985,-1089.5,0.0001389,3]
[330641174,1719682240997,-528.69,0.0001389,3]
[330641176,1719682241007,-500.0,0.0001389,3]
[330641178,1719682241018,-4717.25,0.0001389,3]
[330641180,1719682241030,-500.0,0.0001389,3]
[330641182,1719682241040,-1316.51,0.0001389,3]
[330641184,1719682241051,-705.97,0.0001389,3]
[330641186,1719682241062,-500.0,0.0001389,3]
[330641188,1719682241072,-1074.55,0.0001389,2]
[330641190,1719682241083,-1384.04,0.0001389,3]
[330641192,1719682241094,-500.0,0.0001389,3]
[330641195,1719682241104,-531.65,0.0001389,3]
[330641197,1719682241114,-500.0,0.0001389,3]
[330641199,1719682241124,-629.26,0.0001389,3]
[330641201,1719682241134,-500.0,0.0001389,3]
[330641203,1719682241144,-717.87,0.0001389,3]
[330641205,1719682241154,-500.0,0.0001389,3]
[330641206,1719682241163,-500.0,0.0001389,3]
[330641209,1719682241173,-1075.14,0.0001389,3]
[330641211,1719682241183,-500.0,0.0001389,3]
[330641213,1719682241194,-500.0,0.0001389,3]
[330641215,1719682241204,-500.0,0.0001389,3]
[330641217,1719682241215,-500.0,0.0001389,3]
[330641219,1719682241225,-3152.06,0.0001389,3]
[330641221,1719682241234,-2180.72,0.0001389,3]
[330641223,1719682241244,-734.32,0.0001389,3]
[330641225,1719682241254,-1476.75,0.0001389,3]
[330641227,1719682241264,-1000.0,0.0001389,3]
[330641229,1719682241273,-500.0,0.0001389,3]
[330641231,1719682241283,-2534.64,0.0001389,3]
[330641233,1719682241294,-746.73,0.0001389,3]
[330641235,1719682241304,-1882.9,0.0001389,3]
[330641237,1719682241314,-500.0,0.0001389,3]
[330641239,1719682241323,-500.0,0.0001389,3]
[330641241,1719682241332,-1839.56,0.0001389,3]
[330641243,1719682241342,-500.0,0.0001389,3]
[330641245,1719682241351,-500.0,0.0001389,3]
[330641246,1719682241361,-590.04,0.0001389,3]
[330641248,1719682241370,-696.75,0.0001389,3]
[330641250,1719682241379,-1294.72,0.0001389,3]
[330641253,1719682241390,-880.98,0.0001389,3]
[330641255,1719682241403,-500.0,0.0001389,3]
[330641257,1719682241414,-815.72,0.0001389,3]
[330641259,1719682241423,-1546.63,0.0001389,3]
[330641261,1719682241437,-502.70297359,0.0001389,3]
[330641263,1719682241446,-1856.52,0.0001389,3]
[330641265,1719682241456,-500.0,0.0001389,3]
[330641267,1719682241466,-2767.43,0.0001389,3]
[330641269,1719682241476,-500.0,0.0001389,3]
[330641271,1719682241486,-736.22,0.0001389,3]
[330641273,1719682241496,-500.0,0.0001389,3]
[330641275,1719682241506,-500.0,0.0001389,3]
[330641277,1719682241515,-1354.29,0.0001389,3]
[330641279,1719682241527,-500.0,0.0001389,3]
[330641281,1719682241536,-1180.41,0.0001389,3]
[330641283,1719682241547,-500.0,0.0001389,3]
[330641284,1719682241557,-1819.48,0.0001389,3]
[330641285,1719682241567,-500.0,0.0001389,3]
[330641286,1719682241577,-1378.5,0.0001389,3]
[330641287,1719682241586,-1329.55,0.0001389,3]
[330641288,1719682241595,-2453.52,0.0001389,3]
[330641289,1719682241605,-1143.55,0.0001389,3]
[330641290,1719682241615,-525.97,0.0001389,3]
[330641291,1719682241625,-3208.2,0.0001389,3]
[330641292,1719682241635,-2802.1,0.0001389,3]
[330641294,1719682241649,-593.06974175,0.0001389,3]
[330641296,1719682241660,-3230.12,0.0001389,3]
[330641298,1719682241670,-500.0,0.0001389,3]
[330641300,1719682241681,-500.0,0.0001389,3]
[330641302,1719682241691,-3721.1,0.0001389,3]
[330641304,1719682241702,-1722.5,0.0001389,3]
[330641306,1719682241712,-500.0,0.0001389,3]
[330641308,1719682241723,-769.84,0.0001389,3]
[330641310,1719682241732,-1381.0,0.0001389,3]
[330641312,1719682241743,-534.77,0.0001389,3]
[330641314,1719682241752,-500.0,0.0001389,3]
[330641316,1719682241762,-4087.17,0.0001389,3]
[330641318,1719682241772,-226.09403088,0.0001389,3]
[330641320,1719682241782,-500.0,0.0001389,3]
[330641322,1719682241792,-500.0,0.0001389,2]
[330641324,1719682241802,-928.76,0.0001389,3]
[330641326,1719682241812,-2268.03,0.0001389,3]
[330641328,1719682241822,-759.27,0.0001389,3]
[330641330,1719682241832,-4069.5,0.0001389,3]
[330641333,1719682241843,-500.0,0.0001389,3]
[330641335,1719682241854,-1057.59,0.0001389,3]
[330641336,1719682241863,-775.78,0.0001389,3]
[330641338,1719682241873,-7708.98,0.0001389,3]
[330641340,1719682241882,-500.0,0.0001389,3]
[330641342,1719682241893,-352.26069845,0.0001389,3]
[330641344,1719682241903,-910.11,0.0001389,3]
[330641346,1719682241912,-500.0,0.0001389,3]
[330641348,1719682241923,-1219.01,0.0001389,3]
[330641350,1719682241933,-1834.1,0.0001389,3]
[330641352,1719682241943,-1010.66,0.0001389,3]
[330641354,1719682241954,-500.0,0.0001389,3]
[330641356,1719682241964,-1026.22,0.0001389,3]
[330641359,1719682241974,-1641.16,0.0001389,3]
[330641361,1719682241985,-500.0,0.0001389,3]
[330641363,1719682241994,-912.45,0.0001389,3]
[330641365,1719682242004,-6486.35,0.0001389,3]
[330641366,1719682242014,-500.0,0.0001389,3]
[330641369,1719682242025,-1755.99,0.0001389,3]
[330641370,1719682242034,-593.69,0.0001389,3]
[330641373,1719682242044,-2099.94,0.0001389,3]
[330641375,1719682242054,-500.0,0.0001389,3]
[330641377,1719682242064,-1296.13,0.0001389,3]
[330641378,1719682242073,-6547.61,0.0001389,3]
[330641381,1719682242084,-500.0,0.0001389,3]
[330641383,1719682242094,-536.93,0.0001389,3]
[330641385,1719682242103,-1623.11,0.0001389,3]
[330641387,1719682242113,-632.76,0.0001389,3]
[330641388,1719682242122,-1401.53,0.0001389,3]
[330641391,1719682242133,-500.0,0.0001389,3]
[330641393,1719682242143,-676.85,0.0001389,3]
[330641395,1719682242152,-1632.2,0.0001389,3]
[330641397,1719682242162,-615.15,0.0001389,3]
[330641399,1719682242172,-642.18,0.0001389,3]
[330641401,1719682242181,-1327.58,0.0001389,3]
[330641403,1719682242190,-3171.06,0.0001389,3]
[330641414,1719682242290,-1212.55,0.0001389,3]
[330641415,1719682242300,-500.0,0.0001389,3]
[330641417,1719682242310,-500.0,0.0001389,3]
[330641419,1719682242320,-2398.71,0.0001389,3]
[330641422,1719682242330,-91.44329786,0.0001389,3]
[330641424,1719682242344,-2019.96670214,0.0001389,3]
[330641426,1719682242353,-500.0,0.0001389,3]
[330641428,1719682242363,-542.25,0.0001389,3]
[330641430,1719682242373,-592.81239024,0.0001389,3]
[330641432,1719682242385,-454.67894768,0.0001389,3]
[330641434,1719682242397,-800.0,0.0001389,3]
[330641437,1719682242409,-315.85866208,0.0001389,3]
[330641439,1719682242419,-1254.55,0.0001389,3]
[330641441,1719682242429,-972.95,0.0001389,3]
[330641443,1719682242439,-816.92483471,0.0001389,3]
[330641445,1719682242450,-714.81516529,0.0001389,3]
[330641447,1719682242460,-929.47321641,0.0001389,3]
[330641449,1719682242471,-970.15678359,0.0001389,3]
[330641451,1719682242480,-1515.47,0.0001389,3]
[330641453,1719682242490,-2366.97441641,0.0001389,3]
[330641455,1719682242502,-364.78558359,0.0001389,3]
[330641457,1719682242511,-500.0,0.0001389,3]
[330641459,1719682242521,-516.64,0.0001389,3]
[330641461,1719682242530,-2017.3,0.00013891,3]
[330641463,1719682242540,-2742.45,0.00013891,3]
[330641465,1719682242550,-3651.55,0.00013891,3]
[330641467,1719682242560,-522.54126099,0.00013891,3]
[330641469,1719682242572,-901.37718854,0.00013891,3]
[330641471,1719682242584,-442.25,0.00013891,3]
[330641528,1719682243222,-227.02046916,0.00013574,2]
[330641530,1719682243231,-844.85,0.0001389,3]
[330641532,1719682243241,-158.13155047,0.00013891,3]
[330641534,1719682243251,-2134.14798037,0.00013891,3]
[330641536,1719682243262,-2491.42201963,0.00013891,3]
[330641538,1719682243272,-302.25297587,0.00013891,3]
[330641540,1719682243282,-500.0,0.00013891,3]
[330641542,1719682243291,-500.0,0.00013891,3]
[330641544,1719682243300,-632.93488484,0.00013891,3]
[330641547,1719682243329,-127.17511516,0.00013891,3]
[330641550,1719682243339,-799.1,0.00013891,3]
[330641552,1719682243349,-153.52488984,0.00013891,3]
[330641554,1719682243361,-346.47511016,0.00013891,3]
[330641557,1719682243371,-16.09689184,0.00013891,3]
[330641565,1719682243409,-483.90310816,0.00013891,3]
[330641569,1719682243419,-27.07746137,0.00013891,3]
[330641571,1719682243431,-728.05842579,0.00013891,3]
[330641574,1719682243443,-861.78488582,0.00013891,3]
[330641577,1719682243455,-2461.78922702,0.00013891,3]
[330641580,1719682243466,-500.0,0.00013891,3]
[330641583,1719682243475,-500.0,0.00013891,3]
[330641586,1719682243485,-500.0,0.00013891,3]
[330641589,1719682243495,-500.0,0.00013891,3]
[330641592,1719682243504,-500.0,0.00013891,3]
[330641595,1719682243514,-500.0,0.00013891,3]
[330641598,1719682243525,-500.0,0.00013891,3]
[330641601,1719682243535,-500.0,0.00013891,3]
[330641604,1719682243545,-731.05,0.00013891,3]
[330641607,1719682243555,-500.0,0.00013891,3]
[330641609,1719682243564,-3070.42,0.00013891,3]
[330641612,1719682243574,-500.0,0.00013891,3]
[330641615,1719682243584,-1369.77,0.00013891,3]
[330641618,1719682243594,-500.0,0.00013891,3]
[330641621,1719682243604,-612.15,0.00013891,3]
[330641624,1719682243613,-512.12,0.00013891,3]
[330641627,1719682243623,-500.0,0.00013891,3]
[330641629,1719682243633,-500.0,0.00013891,3]
[330641631,1719682243644,-698.87,0.00013891,3]
[330641633,1719682243657,-1276.69276678,0.00013891,3]
[330641635,1719682243670,-138.39723322,0.00013891,3]
[330641637,1719682243680,-214.33594328,0.00013891,3]
[330641639,1719682243692,-285.66405672,0.00013891,3]
[330641641,1719682243701,-500.0,0.00013891,3]
[330641643,1719682243711,-277.07255704,0.00013891,3]
[330641645,1719682243722,-947.66744296,0.00013891,3]
[330641647,1719682243732,-578.47,0.00013891,3]
[330641649,1719682243742,-473.1037019,0.00013891,3]
[330641651,1719682243752,-4677.08,0.00013891,3]
[330641653,1719682243762,-500.0,0.00013891,3]
[330641655,1719682243772,-500.0,0.00013891,3]
[330641657,1719682243782,-500.0,0.00013891,3]
[330641659,1719682243792,-500.0,0.00013891,3]
[330641661,1719682243804,-500.0,0.00013891,3]
[330641663,1719682243813,-2263.94,0.00013891,3]
[330641665,1719682243822,-775.46,0.00013891,3]
[330641667,1719682243832,-500.0,0.00013891,3]
[330641669,1719682243843,-591.57,0.00013891,3]
[330641671,1719682243853,-1018.89,0.00013891,3]
[330641673,1719682243863,-500.0,0.00013891,3]
[330641675,1719682243872,-500.0,0.00013891,3]
[330641677,1719682243882,-2996.44,0.00013891,3]
[330641679,1719682243891,-500.0,0.00013891,3]
[330641681,1719682243901,-500.0,0.00013891,3]
[330641684,1719682243910,-500.0,0.00013891,3]
[330641687,1719682243919,-500.0,0.00013891,3]
[330641689,1719682243929,-500.0,0.00013891,3]
[330641691,1719682243939,-500.0,0.00013891,3]
[330641693,1719682243948,-500.0,0.00013891,3]
[330641695,1719682243958,-500.0,0.00013891,3]
[330641697,1719682243967,-679.04,0.00013891,3]
[330641699,1719682243976,-1699.29,0.00013891,3]
[330641701,1719682243985,-500.0,0.00013891,3]
[330641703,1719682243994,-500.0,0.00013891,3]
[330641705,1719682244003,-500.0,0.00013891,3]
[330641707,1719682244012,-500.0,0.00013891,3]
[330641709,1719682244021,-1786.63,0.00013891,3]
[330641711,1719682244032,-500.0,0.00013891,3]
[330641713,1719682244042,-557.2,0.00013891,3]